Workbook

Sheet เริ่ม
B1: เกี่ยวกับเทมเพลตนี้
B2: ใช้เวิร์กบุ๊กงบประมาณจัดกิจกรรมนี้เพื่อติดตามค่าใช้จ่ายที่เกิดขึ้นและรายได้ที่ได้รับผ่านทางกิจกรรม
B3: กรอกชื่อกิจกรรม แล้วใส่รายละเอียดในตารางในเวิร์กชีตค่าใช้จ่ายและเวิร์กชีตรายได้
B4: ค่าใช้จ่ายทั้งหมดและรายได้ทั้งหมดจะถูกคำนวณโดยอัตโนมัติ
B5: สรุปและแผนภูมิของกำไรขาดทุนจะอัปเดตโดยอัตโนมัติในเวิร์กชีตสรุป
B6: หมายเหตุ:
B7: คำแนะนำเพิ่มเติมจะอยู่ในคอลัมน์ A ในเวิร์กชีตแต่ละแผ่น ข้อความนี้ได้ถูกซ่อนไว้โดยตั้งใจ เมื่อต้องการเอาข้อความออก ให้เลือกคอลัมน์ A แล้วเลือก ลบ เมื่อต้องการยกเลิกการซ่อนข้อความ ให้เลือกคอลัมน์ A แล้วเปลี่ยนสีฟอนต์
B8: เมื่อต้องการเรียนรู้เพิ่มเติมเกี่ยวกับตาราง ให้กด SHIFT แล้วตามด้วย F10 ภายในตาราง แล้วเลือกตัวเลือก ตาราง จากนั้นเลือก ข้อความแสดงแทน

Sheet รายจ่าย
A1: ใส่ค่าใช้จ่ายโดยประมาณและค่าใช้จ่ายจริงสำหรับแต่ละประเภทในตารางที่สอดคล้องกันในเวิร์กชีตนี้ ค่าใช้จ่ายทั้งหมดจะถูกคำนวณโดยอัตโนมัติ คำแนะนำที่เป็นประโยชน์เกี่ยวกับวิธีใช้เวิร์กชีตนี้อยู่ในเซลล์ในคอลัมน์นี้ ใช้ลูกศรลงเพื่อเริ่มต้นใช้งาน
A2: ใส่ชื่อกิจกรรมในเซลล์ด้านขวาเพื่อกำหนดชื่อของเวิร์กชีตนี้และเวิร์กชีตอื่นๆ เอง | B2: งบประมาณจัดกิจกรรมสำหรับ ชื่อกิจกรรม
A3: ป้ายชื่อค่าใช้จ่ายอยู่ในเซลล์ G3 | G3: ค่าใช้จ่าย
A4: ป้ายชื่อค่าใช้จ่ายโดยประมาณอยู่ในเซลล์ G4 และป้ายชื่อค่าใช้จ่ายจริงอยู่ในเซลล์ H4 | G4: ค่าใช้จ่ายโดยประมาณ | H4: ค่าใช้จ่ายจริง
A5: ป้ายชื่อค่าใช้จ่ายทั้งหมดอยู่ในเซลล์ด้านขวา ค่าใช้จ่ายทั้งหมดโดยประมาณจะถูกคำนวณโดยอัตโนมัติในเซลล์ G5 ค่าใช้จ่ายทั้งหมดตามจริงและแถบข้อมูลที่แสดงค่าใช้จ่ายทั้งหมดตามจริงจะอัปเดตโดยอัตโนมัติในเซลล์ H5 คำแนะนำถัดไปอยู่ในเซลล์ A7 | B5: ค่าใช้จ่ายทั้งหมด | G5: =SUM(C12,C20,C26,C33,G12,G20,G25) -> ฿1,145.00 | H5: =SUM(D12,D20,D26,D33,H12,H20,H25) -> ฿395.00
A7: ใส่ค่าใช้จ่ายด้านสถานที่ในตารางโดยเริ่มจากเซลล์ด้านขวา และค่าใช้จ่ายด้านอาหารว่างในตารางโดยเริ่มจากเซลล์ F7 คำแนะนำถัดไปอยู่ในเซลล์ A14 | B7: สถานที่ | C7: ค่าใช้จ่ายโดยประมาณ | D7: ค่าใช้จ่ายจริง | F7: อาหารว่าง | G7: ค่าใช้จ่ายโดยประมาณ | H7: ค่าใช้จ่ายจริง
B8: ค่าห้องและหอประชุม | C8: ฿500.00 | D8: ฿250.00 | F8: อาหาร
B9: เจ้าหน้าที่ของสถานที่ | C9: ฿400.00 | D9: ฿50.00 | F9: เครื่องดื่ม
B10: อุปกรณ์ | F10: ผ้าปูโต๊ะ
B11: โต๊ะและเก้าอี้ | F11: พนักงานและเงินค่าตอบแทน
B12: ผลรวม | C12: =SUBTOTAL(109,SiteExpenses[ค่าใช้จ่ายโดยประมาณ]) -> ฿900.00 | D12: =SUBTOTAL(109,SiteExpenses[ค่าใช้จ่ายจริง]) -> ฿300.00 | F12: ผลรวม | G12: =SUBTOTAL(109,RefreshmentsExpenses[ค่าใช้จ่ายโดยประมาณ]) -> ฿0.00 | H12: =SUBTOTAL(109,RefreshmentsExpenses[ค่าใช้จ่ายจริง]) -> ฿0.00
A14: ใส่ค่าใช้จ่ายด้านการตกแต่งในตารางโดยเริ่มจากเซลล์ด้านขวา และค่าใช้จ่ายด้านรายการแสดงในตารางโดยเริ่มจากเซลล์ F14 คำแนะนำถัดไปอยู่ในเซลล์ A22 | B14: การตกแต่ง | C14: ค่าใช้จ่ายโดยประมาณ | D14: ค่าใช้จ่ายจริง | F14: รายการแสดง | G14: ค่าใช้จ่ายโดยประมาณ | H14: ค่าใช้จ่ายจริง
B15: ดอกไม้ | C15: ฿200.00 | D15: ฿50.00 | F15: ผู้แสดง
B16: เทียน | F16: ลำโพง
B17: โคมไฟ | F17: การเดินทาง
B18: บอลลูน | F18: โรงแรม
B19: วัสดุกระดาษ | F19: อื่นๆ
B20: ผลรวม | C20: =SUBTOTAL(109,DecorationsExpenses[ค่าใช้จ่ายโดยประมาณ]) -> ฿200.00 | D20: =SUBTOTAL(109,DecorationsExpenses[ค่าใช้จ่ายจริง]) -> ฿50.00 | F20: ผลรวม | G20: =SUBTOTAL(109,ProgramExpenses[ค่าใช้จ่ายโดยประมาณ]) -> ฿0.00 | H20: =SUBTOTAL(109,ProgramExpenses[ค่าใช้จ่ายจริง]) -> ฿0.00
A22: ใส่ค่าใช้จ่ายด้านการประชาสัมพันธ์ในตารางโดยเริ่มจากเซลล์ด้านขวา และค่าใช้จ่ายด้านรางวัลในตารางโดยเริ่มจากเซลล์ F22 คำแนะนำถัดไปอยู่ในเซลล์ A28 | B22: การประชาสัมพันธ์ | C22: ค่าใช้จ่ายโดยประมาณ | D22: ค่าใช้จ่ายจริง | F22: รางวัล | G22: ค่าใช้จ่ายโดยประมาณ | H22: ค่าใช้จ่ายจริง
B23: งานกราฟิก | C23: ฿45.00 | D23: ฿45.00 | F23: สายสะพาย/โล่/ถ้วยรางวัล
B24: การถ่ายสำเนา/การพิมพ์ | F24: ของชำร่วย
B25: ค่าไปรษณีย์ | F25: ผลรวม | G25: =SUBTOTAL(109,PrizesExpenses[ค่าใช้จ่ายโดยประมาณ]) -> ฿0.00 | H25: =SUBTOTAL(109,PrizesExpenses[ค่าใช้จ่ายจริง]) -> ฿0.00
B26: ผลรวม | C26: =SUBTOTAL(109,PublicityExpenses[ค่าใช้จ่ายโดยประมาณ]) -> ฿45.00 | D26: =SUBTOTAL(109,PublicityExpenses[ค่าใช้จ่ายจริง]) -> ฿45.00
A28: ใส่ค่าใช้จ่ายเบ็ดเตล็ดในตารางโดยเริ่มจากเซลล์ด้านขวา | B28: เบ็ดเตล็ด | C28: ค่าใช้จ่ายโดยประมาณ | D28: ค่าใช้จ่ายจริง
B29: โทรศัพท์
B30: พาหนะเดินทาง
B31: อุปกรณ์เครื่องเขียน
B32: บริการโทรสาร
B33: ผลรวม | C33: =SUBTOTAL(109,MiscellaneousExpenses[ค่าใช้จ่ายโดยประมาณ]) -> ฿0.00 | D33: =SUBTOTAL(109,MiscellaneousExpenses[ค่าใช้จ่ายจริง]) -> ฿0.00

Sheet รายได้
A1: ใส่รายได้โดยประมาณและรายได้จริงสำหรับแต่ละประเภทในตารางที่สอดคล้องกันในเวิร์กชีตนี้ รายได้ทั้งหมดจะถูกคำนวณโดยอัตโนมัติ คำแนะนำที่เป็นประโยชน์เกี่ยวกับวิธีใช้เวิร์กชีตนี้อยู่ในเซลล์ในคอลัมน์นี้ ใช้ลูกศรลงเพื่อเริ่มต้นใช้งาน
A2: ชื่อกิจกรรมจะถูกอัปเดตในเซลล์ทางด้านขวาโดยอัตโนมัติ | B2: =รายจ่าย!B2 -> งบประมาณจัดกิจกรรมสำหรับ ชื่อกิจกรรม
A3: ป้ายชื่อรายได้อยู่ในเซลล์ F3 | F3: รายได้
A4: ป้ายชื่อโดยประมาณอยู่ในเซลล์ F4 และป้ายชื่อตามที่เป็นจริงอยู่ในเซลล์ G4 | F4: ค่าใช้จ่ายโดยประมาณ | G4: ตามที่เป็นจริง
A5: ป้ายชื่อรายได้ทั้งหมดอยู่ในเซลล์ทางด้านขวา รายได้ทั้งหมดโดยประมาณจะถูกคำนวณโดยอัตโนมัติในเซลล์ F5 รายได้ทั้งหมดตามจริงและแถบข้อมูลที่แสดงรายได้ทั้งหมดตามจริงจะอัปเดตโดยอัตโนมัติในเซลล์ G5 | B5: รายได้ทั้งหมด | F5: =SUM(การเข้าร่วมงาน[[#Totals],[ทั้งหมดโดยประมาณ]],AdsInProgram[[#Totals],[ทั้งหมดโดยประมาณ]],ExhibitorsAndvendors[[#Totals],[ทั้งหมดโดยประมาณ]],SaleOfItem[[#Totals],[ทั้งหมดโดยประมาณ]]) -> ฿1,936.00 | G5: =SUM(การเข้าร่วมงาน[[#Totals],[ทั้งหมดตามจริง]],AdsInProgram[[#Totals],[ทั้งหมดตามจริง]],ExhibitorsAndvendors[[#Totals],[ทั้งหมดตามจริง]],SaleOfItem[[#Totals],[ทั้งหมดตามจริง]]) -> ฿1,831.00
A6: ป้ายชื่อค่าธรรมเนียมในการเข้าอยู่ในเซลล์ด้านขวา | B6: ค่าธรรมเนียมในการเข้า
A7: ใส่จำนวนค่าธรรมเนียมในการเข้าโดยประมาณและค่าเข้างานจริงพร้อมราคาตั๋วในตารางโดยเริ่มจากเซลล์ด้านขวา รายได้โดยประมาณและรายได้จริงจากค่าธรรมเนียมในการเข้าจะคำนวณโดยอัตโนมัติ คำแนะนำถัดไปอยู่ในเซลล์ A12 | B7: ค่าใช้จ่ายโดยประมาณ | C7: ค่าใช้จ่ายจริง | D7: ประเภท | E7: ราคา | F7: ทั้งหมดโดยประมาณ | G7: ทั้งหมดตามจริง
B8: 300 | C8: 278 | D8: ผู้ใหญ่ @ | E8: ฿5.00 | F8: =B8*E8 -> ฿1,500.00 | G8: =C8*E8 -> ฿1,390.00
B9: 197 | C9: 195 | D9: เด็ก @ | E9: ฿2.00 | F9: =B9*E9 -> ฿394.00 | G9: =C9*E9 -> ฿390.00
B10: 42 | C10: 51 | D10: อื่นๆ @ | E10: ฿1.00 | F10: ฿42.00 | G10: ฿51.00
F11: =SUBTOTAL(109,การเข้าร่วมงาน[ทั้งหมดโดยประมาณ]) -> ฿1,936.00 | G11: =SUBTOTAL(109,การเข้าร่วมงาน[ทั้งหมดตามจริง]) -> ฿1,831.00
A12: ป้ายชื่อโฆษณาในรายการแสดงอยู่ในเซลล์ด้านขวา | B12: โฆษณาในรายการแสดง
A13: ใส่จำนวนโฆษณาโดยประมาณและจำนวนโฆษณาจริงในรายการแสดงและราคาโฆษณาในตารางโดยเริ่มจากเซลล์ด้านขวา รายได้โดยประมาณและรายได้จริงจากโฆษณาจะคำนวณโดยอัตโนมัติ คำแนะนำถัดไปอยู่ในเซลล์ A18 | B13: ค่าใช้จ่ายโดยประมาณ | C13: ค่าใช้จ่ายจริง | D13: ประเภท | E13: ราคา | F13: ทั้งหมดโดยประมาณ | G13: ทั้งหมดตามจริง
D14: ใบประหน้า @ | F14: =B14*E14 -> ฿0.00 | G14: =C14*E14 -> ฿0.00
D15: ครึ่งหน้า @ | F15: =B15*E15 -> ฿0.00 | G15: =C15*E15 -> ฿0.00
D16: 1/4 หน้า @ | F16: ฿0.00 | G16: ฿0.00
F17: =SUBTOTAL(109,AdsInProgram[ทั้งหมดโดยประมาณ]) -> ฿0.00 | G17: =SUBTOTAL(109,AdsInProgram[ทั้งหมดตามจริง]) -> ฿0.00
A18: ป้ายชื่อผู้จัดแสดงนิทรรศการหรือผู้จัดจำหน่ายอยู่ในเซลล์ด้านขวา | B18: ผู้จัดแสดงนิทรรศการ/ผู้จัดจำหน่าย
A19: ใส่จำนวนผู้จัดแสดงนิทรรศการและผู้จัดจำหน่ายโดยประมาณและจำนวนจริง และราคาบูธในตารางโดยเริ่มจากเซลล์ด้านขวา รายได้โดยประมาณและรายได้จริงจะคำนวณโดยอัตโนมัติ คำแนะนำถัดไปจะอยู่ในเซลล์ A24 | B19: ค่าใช้จ่ายโดยประมาณ | C19: ค่าใช้จ่ายจริง | D19: ประเภท | E19: ราคา | F19: ทั้งหมดโดยประมาณ | G19: ทั้งหมดตามจริง
D20: บูธขนาดใหญ่ @ | F20: =B20*E20 -> ฿0.00 | G20: =C20*E20 -> ฿0.00
D21: บูธขนาดกลาง @ | F21: =B21*E21 -> ฿0.00 | G21: =C21*E21 -> ฿0.00
D22: บูธขนาดเล็ก @ | F22: ฿0.00 | G22: ฿0.00
F23: =SUBTOTAL(109,ExhibitorsAndvendors[ทั้งหมดโดยประมาณ]) -> ฿0.00 | G23: =SUBTOTAL(109,ExhibitorsAndvendors[ทั้งหมดตามจริง]) -> ฿0.00
A24: ป้ายชื่อยอดขายสินค้าอยู่ในเซลล์ด้านขวา | B24: ยอดขายสินค้า
A25: ใส่จำนวนสินค้าที่ขายโดยประมาณและจำนวนจริง และราคาสินค้าในตารางโดยเริ่มจากเซลล์ด้านขวา รายได้โดยประมาณและรายได้จริงจะคำนวณโดยอัตโนมัติ | B25: ค่าใช้จ่ายโดยประมาณ | C25: ค่าใช้จ่ายจริง | D25: ประเภท | E25: ราคา | F25: ทั้งหมดโดยประมาณ | G25: ทั้งหมดตามจริง
D26: สินค้า @ | F26: =B26*E26 -> ฿0.00 | G26: =C26*E26 -> ฿0.00
D27: สินค้า @ | F27: =B27*E27 -> ฿0.00 | G27: =C27*E27 -> ฿0.00
D28: สินค้า @ | F28: ฿0.00 | G28: ฿0.00
D29: สินค้า @ | F29: ฿0.00 | G29: ฿0.00
F30: =SUBTOTAL(109,SaleOfItem[ทั้งหมดโดยประมาณ]) -> ฿0.00 | G30: =SUBTOTAL(109,SaleOfItem[ทั้งหมดตามจริง]) -> ฿0.00

Sheet สรุป
A1: สรุปและแผนภูมิของกำไรขาดทุนที่แสดงรายได้และค่าใช้จ่ายทั้งหมดจะอัปเดตโดยอัตโนมัติในเวิร์กชีตนี้ คำแนะนำที่เป็นประโยชน์เกี่ยวกับวิธีใช้เวิร์กชีตนี้อยู่ในเซลล์ในคอลัมน์นี้ ใช้ลูกศรลงเพื่อเริ่มต้นใช้งาน
A2: ชื่อกิจกรรมจะถูกอัปเดตในเซลล์ทางด้านขวาโดยอัตโนมัติ | B2: =รายจ่าย!B2 -> งบประมาณจัดกิจกรรมสำหรับ ชื่อกิจกรรม
A3: ป้ายชื่อสรุปกำไรขาดทุนอยู่ในเซลล์ C3 คำแนะนำถัดไปอยู่ในเซลล์ A5 | C3: สรุปกำไรขาดทุน
A5: ตารางผลรวมที่เริ่มต้นจากเซลล์ด้านขวาจะอัปเดตโดยอัตโนมัติ คำแนะนำถัดไปอยู่ในเซลล์ A9 | B5: ผลรวม | C5: ค่าใช้จ่ายโดยประมาณ | D5: ตามที่เป็นจริง
B6: รายได้ทั้งหมด | C6: =รายได้!F5 -> ฿1,936.00 | D6: =รายได้!G5 -> ฿1,831.00
B7: ค่าใช้จ่ายทั้งหมด | C7: =รายจ่าย!G5 -> ฿1,145.00 | D7: =รายจ่าย!H5 -> ฿395.00
B8: ผลกำไร (หรือขาดทุน) | C8: =C6-C7 -> ฿791.00 | D8: =D6-D7 -> ฿1,436.00
A9: แผนภูมิคอลัมน์แบบกลุ่มที่แสดงการเปรียบเทียบรายได้ทั้งหมดโดยประมาณและตามจริงและค่าใช้จ่ายทั้งหมดอยู่ในเซลล์ด้านขวา | B9: แผนภูมิคอลัมน์แบบกลุ่มที่แสดงการเปรียบเทียบรายได้ทั้งหมดโดยประมาณและตามจริงและค่าใช้จ่ายทั้งหมดอยู่ในเซลล์นี้
